bitfinex/quotes_ETHUSD_20240621
["timestamp","ask_amount","ask_price","bid_price","bid_amount"]
[1718971322731,2.07195292,3511.0,3510.7,0.878]
[1718971322929,2.07195292,3510.9,3510.7,1.23124707]
[1718971323137,2.07195292,3510.8,3510.7,1.23124707]
[1718971323368,0.0188954,3511.2,3510.8,2.4722]
[1718971323573,0.0188954,3511.2,3510.9,0.37034471]
[1718971323574,2.07169386,3511.1,3510.9,0.37034471]
[1718971324279,0.0188954,3511.2,3510.9,0.37034471]
[1718971324474,2.07165723,3511.1,3510.8,2.4722]
[1718971327065,2.07165723,3511.1,3510.4,2.2511]
[1718971327264,2.07165723,3511.1,3510.0,7.37]
[1718971327265,2.3416954,3511.2,3510.0,9.6211]
[1718971327566,2.07207403,3511.1,3510.0,9.6211]
[1718971327876,2.07214983,3511.0,3510.0,9.6211]
[1718971328111,2.07214983,3510.9,3510.0,9.6211]
[1718971328309,2.07214983,3510.8,3510.0,9.6211]
[1718971328470,2.07214983,3510.7,3510.1,1.01908132]
[1718971328667,2.07214983,3510.6,3510.1,1.01908132]
[1718971328864,0.0188954,3511.2,3510.2,2.3877]
[1718971329190,0.0188954,3511.2,3510.0,7.37]
[1718971329191,2.07179511,3511.1,3510.4,2.3877]
[1718971329380,0.0188954,3511.2,3510.4,2.3877]
[1718971329587,0.0188954,3511.2,3510.5,2.3877]
[1718971329765,0.0188954,3511.2,3510.7,2.3877]
[1718971329967,0.0188954,3511.2,3510.7,3.0]
[1718971330174,0.0188954,3511.2,3510.8,2.3877]
[1718971330396,0.0188954,3511.2,3511.0,2.4511]
[1718971330601,0.0188954,3511.2,3511.1,0.05689706]
[1718971330795,0.0188954,3511.2,3511.1,0.25079971]
[1718971333605,0.0188954,3511.2,3511.1,5.4183]
[1718971333774,0.0188954,3511.2,3511.1,2.4183]
[1718971333967,0.0188954,3511.2,3511.1,2.9683]
[1718971334285,0.0188954,3511.2,3511.1,7.6833]
[1718971336669,0.0188954,3511.2,3511.1,5.4183]
[1718971336870,0.0188954,3511.2,3511.1,2.96013]
[1718971337123,0.0188954,3511.2,3511.1,5.4183]
[1718971337358,0.0188954,3511.2,3511.1,2.4183]
[1718971337633,0.0188954,3511.2,3511.1,5.4183]
[1718971338176,0.0188954,3511.2,3510.7,2.2728]
[1718971339178,0.0188954,3511.2,3510.8,1.715]
[1718971339380,0.0188954,3511.2,3510.9,0.39878]
[1718971340427,0.0188954,3511.2,3511.1,6.1344]
[1718971340590,0.0188954,3511.2,3511.1,9.6844]
[1718971341782,2.2676,3513.2,3511.3,1.715]
[1718971342019,2.2676,3513.2,3511.6,7.37]
[1718971342320,2.2676,3513.2,3511.7,3.0]
[1718971342528,2.2676,3513.2,3511.8,2.3529]
[1718971342978,2.2676,3513.2,3511.9,0.55]
[1718971343180,2.4442,3514.1,3511.9,3.55]
[1718971343417,2.107,3513.8,3512.3,7.37]
[1718971343575,2.3197,3513.6,3512.3,7.37]
[1718971343783,2.72063414,3513.5,3512.3,7.37]
[1718971343979,2.07089916,3513.4,3512.0,0.86328196]
[1718971344728,0.64973498,3513.5,3512.0,0.86328196]
[1718971345031,0.5076435,3513.4,3512.0,0.86328196]
[1718971345196,3.0,3513.5,3512.1,0.05693875]
[1718971345377,2.3197,3513.6,3512.1,0.05693875]
[1718971346237,2.3197,3513.6,3512.0,0.86328196]
[1718971348301,5.3197,3513.6,3511.9,3.0]
[1718971348610,2.07097522,3513.5,3511.8,2.3529]
[1718971348919,5.07097522,3513.5,3511.8,2.3529]
[1718971349096,5.32004274,3513.4,3511.8,3.27039]
[1718971349280,3.24906752,3513.4,3511.9,3.0]
[1718971350124,3.24906752,3513.4,3512.0,7.37]
[1718971350439,0.62490675,3513.3,3512.0,8.47430196]
[1718971350778,0.62490675,3513.3,3512.0,7.37]
[1718971351563,2.2672,3513.2,3512.0,7.37]
[1718971352792,2.3212,3513.0,3512.0,7.37]
[1718971354604,2.4579,3513.5,3512.1,2.3512]
[1718971354799,0.24579,3513.4,3512.1,1.18282]
[1718971356589,3.0,3513.8,3512.2,4.1564]
[1718971356928,2.4377,3514.2,3512.3,0.55]
[1718971356929,5.4377,3514.2,3512.3,0.55]
[1718971357239,2.07067785,3514.1,3512.6,7.37]
[1718971357441,2.85157556,3514.0,3512.6,8.162]
[1718971357629,2.07067777,3513.9,3512.7,2.4414]
[1718971357806,2.4377,3514.2,3512.7,2.4414]
[1718971358132,2.07053223,3514.1,3512.7,2.4414]
[1718971358309,2.55141545,3514.1,3512.8,1.06034]
[1718971358632,2.07053868,3514.0,3512.8,1.06034]
[1718971358835,2.107,3514.6,3512.8,1.06034]
[1718971358836,0.04960757,3515.4,3513.2,2.107]
[1718971359042,2.107,3515.5,3513.3,12.0282]
[1718971359333,2.4976115,3514.7,3513.3,9.7632]
[1718971359540,0.24976115,3514.6,3513.3,10.72465196]
[1718971359994,0.1209115,3514.7,3513.4,0.55]
[1718971360729,0.1209115,3514.7,3513.3,10.72465196]
[1718971361296,0.1209115,3514.7,3513.4,1.715]
[1718971361490,0.1209115,3514.7,3513.5,3.32534]
[1718971361792,0.1209115,3514.7,3513.6,3.0]
[1718971362007,0.0709115,3514.7,3513.6,3.0]
[1718971363107,0.0709115,3514.7,3514.0,2.107]
[1718971363317,0.0709115,3514.7,3514.1,4.1382]
[1718971363612,0.0709115,3514.7,3514.3,1.715]
[1718971364345,0.0709115,3514.7,3514.4,2.265]
[1718971365241,6.04157086,3517.8,3514.8,1.715]
[1718971365394,6.04157086,3517.8,3515.6,2.107]
[1718971365395,2.43894501,3517.7,3515.6,2.107]
[1718971365591,2.06889792,3517.6,3516.0,7.37]
[1718971365795,0.6887045,3517.5,3516.0,7.37]
[1718971365995,2.06889792,3517.4,3516.0,7.37]
[1718971366211,0.6887045,3517.5,3516.0,7.37]
[1718971366426,4.3981,3517.8,3516.0,7.37]
[1718971367008,2.2911,3517.8,3516.0,7.37]
[1718971367209,2.2911,3517.8,3516.1,1.715]
[1718971367410,2.2911,3517.8,3516.0,7.37]
[1718971367411,2.2911,3517.8,3516.2,2.265]
[1718971367613,2.2911,3517.8,3516.2,2.95737196]
[1718971367614,0.22911,3517.7,3516.2,2.95737196]
[1718971367837,0.22911,3517.7,3516.0,7.37]
[1718971367838,2.33611,3517.7,3516.0,7.37]
[1718971368259,0.22911,3517.7,3516.0,7.37]
[1718971368453,0.1209115,3518.3,3516.0,7.37]
[1718971368454,2.107,3517.8,3516.0,7.37]
[1718971368956,2.107,3517.8,3516.1,1.715]
[1718971369320,0.1209115,3518.3,3516.0,7.37]
[1718971369511,2.107,3517.4,3516.0,7.37]
[1718971369752,0.2107,3517.3,3516.0,7.37]
[1718971370408,2.107,3517.6,3516.0,7.37]
[1718971370614,2.107,3517.2,3516.0,7.37]
[1718971371211,3.0,3517.7,3516.0,7.37]
[1718971371561,2.3451,3517.8,3516.0,7.37]
[1718971371562,2.107,3517.4,3516.0,7.37]
[1718971371865,3.0,3517.5,3516.0,7.37]
[1718971372007,5.107,3517.5,3516.0,7.37]
[1718971372213,2.3451,3517.8,3516.0,7.37]
[1718971372214,2.107,3517.1,3516.0,7.37]
[1718971373352,0.23451,3517.7,3516.0,7.37]
[1718971373652,3.0,3518.2,3516.0,7.37]
[1718971373653,3.0,3517.6,3516.0,7.37]
[1718971373852,2.107,3517.6,3516.0,7.37]
[1718971374239,2.107,3517.2,3516.0,7.37]
[1718971374450,0.2107,3517.1,3516.0,7.37]
[1718971375659,2.107,3516.7,3516.0,7.37]
[1718971375873,2.107,3516.3,3515.6,7.37]
[1718971376043,0.2107,3516.2,3515.6,7.37]
[1718971377570,0.1607,3516.2,3515.6,7.37]
[1718971379385,3.0,3516.4,3515.6,7.37]
[1718971380591,3.0,3516.8,3515.6,7.37]
[1718971381762,5.3223,3517.0,3515.7,2.3781]
[1718971382015,0.75,3518.1,3515.7,2.3781]
[1718971382016,0.5533,3516.9,3515.7,2.3781]
[1718971382217,2.803,3517.5,3515.7,2.3781]
[1718971382671,2.803,3517.0,3515.6,7.37]
[1718971382871,2.803,3516.4,3515.6,7.37]
[1718971383093,2.803,3516.4,3515.3,7.37]
[1718971383459,3.0,3516.3,3515.3,7.37]
[1718971383862,2.803,3515.9,3515.3,7.37]
[1718971384108,2.803,3515.9,3515.0,12.28]
[1718971384109,0.2803,3515.8,3514.7,2.4476]
[1718971384302,3.2803,3515.8,3514.7,2.4476]
[1718971384472,3.2803,3515.8,3514.6,7.37]
[1718971384473,5.5355,3515.8,3514.6,7.37]
[1718971384796,2.803,3515.4,3514.6,7.37]
[1718971385775,3.0,3515.3,3514.6,7.37]
[1718971386971,2.2607,3516.3,3514.6,7.37]
[1718971387608,5.2607,3516.3,3514.6,7.37]
[1718971387811,1.10637,3516.2,3514.6,7.37]
[1718971388110,4.10637,3516.2,3514.6,7.37]
[1718971389614,5.5341,3516.9,3514.8,1.715]
[1718971389932,3.0,3516.8,3515.2,7.37]
[1718971390107,0.85341,3516.7,3515.2,7.37]
[1718971390311,0.85341,3516.7,3515.3,2.2952]
[1718971390474,2.803,3517.1,3515.4,1.715]
[1718971390691,2.803,3517.1,3515.5,0.55]
[1718971391925,3.0,3517.0,3515.5,0.55]
[1718971392242,3.0,3517.0,3515.6,0.45602]
[1718971392385,2.95,3517.0,3515.6,7.82602]
[1718971392984,0.04954386,3518.2,3515.8,1.715]
[1718971393200,2.803,3518.1,3516.4,2.4931]
[1718971393399,2.803,3518.1,3516.5,0.05678873]
[1718971394639,0.1209115,3518.3,3516.5,1.77178873]
[1718971395003,0.1209115,3518.3,3516.7,1.715]
[1718971395200,0.1209115,3518.3,3516.8,7.95903465]
[1718971395437,0.1209115,3518.3,3516.8,9.67403465]
[1718971396338,0.1209115,3518.3,3517.0,2.2948]
[1718971396537,0.1209115,3518.3,3517.1,0.05685093]
[1718971397017,0.1209115,3518.3,3517.3,1.715]
[1718971397425,0.1209115,3518.3,3517.3,4.715]
[1718971397817,0.1209115,3518.3,3517.3,3.0]
[1718971398044,0.1209115,3518.3,3517.2,2.2905]
[1718971399134,0.1209115,3518.3,3517.2,4.0055]
[1718971399338,0.1209115,3518.3,3517.3,6.02410111]
[1718971399648,0.1209115,3518.3,3517.3,3.02410111]
[1718971400026,0.1209115,3518.3,3517.5,1.715]
[1718971400339,0.1209115,3518.3,3517.6,0.59601886]
[1718971401441,0.1209115,3518.3,3517.5,4.715]
[1718971401762,0.1209115,3518.3,3517.4,2.344]
[1718971402144,0.1209115,3518.3,3517.3,0.75910111]
[1718971402457,2.9239115,3518.3,3517.2,7.37]
[1718971402823,3.0,3518.2,3517.2,7.37]
[1718971403020,1.12631115,3518.1,3517.2,7.37]
[1718971404247,2.06853524,3518.0,3517.2,7.37]
[1718971404463,5.06853524,3518.0,3517.2,7.37]
[1718971404661,2.803,3517.8,3517.2,7.37]
[1718971404856,2.803,3517.8,3516.2,2.3827]
[1718971404857,3.0,3517.7,3516.5,7.37]
[1718971405081,3.5803,3517.7,3516.5,7.37]
[1718971405533,2.803,3517.2,3516.5,7.3503]
[1718971406061,3.0,3517.1,3516.5,7.3503]
[1718971406255,0.5803,3517.0,3516.5,7.3503]
[1718971407369,3.0,3517.1,3516.5,7.3503]
[1718971408175,8.1718,3517.6,3516.5,7.3503]
[1718971408361,2.06870872,3517.5,3516.5,7.3503]
[1718971408568,5.06870872,3517.5,3516.5,7.3503]
[1718971408874,2.803,3517.1,3516.5,7.3503]
[1718971409078,5.06870872,3517.0,3516.5,7.3503]
[1718971409389,2.06898499,3516.9,3516.5,7.3503]
[1718971409681,2.06898499,3516.9,3515.8,7.3503]
[1718971409969,2.57591817,3516.8,3515.8,7.3503]
[1718971410168,3.0,3517.1,3515.5,12.28]
[1718971410169,2.803,3516.6,3515.5,12.28]
[1718971410476,5.06940678,3516.5,3515.4,7.3503]
[1718971410636,2.06949008,3516.4,3515.4,7.3503]
[1718971411670,2.803,3516.1,3515.4,7.3503]
[1718971411873,5.06949008,3516.0,3515.4,7.3503]
[1718971412080,2.06949008,3515.9,3515.4,7.3503]
[1718971412260,2.85673909,3515.9,3515.4,7.3503]
[1718971412604,2.06949008,3515.8,3515.4,7.3503]
[1718971412898,2.06949008,3515.8,3514.8,7.3503]
[1718971413683,2.06969936,3515.7,3514.8,7.3503]
[1718971413846,0.58569484,3515.6,3514.8,7.3503]
[1718971414050,2.06969936,3515.5,3514.8,7.3503]
[1718971414441,5.06969936,3515.5,3514.8,7.3503]
[1718971414664,2.06969936,3515.4,3514.8,7.3503]
[1718971414967,3.0,3515.4,3514.8,7.3503]
[1718971415183,2.803,3515.1,3514.8,7.3503]
[1718971415541,5.07011829,3515.0,3513.8,7.3503]
[1718971415828,2.07011829,3514.9,3513.8,7.3503]
[1718971415995,0.78731183,3514.8,3513.8,7.3503]
[1718971416145,3.78731183,3514.8,3513.8,7.3503]
[1718971416346,0.78731183,3514.8,3513.8,7.3503]
[1718971416648,3.0,3514.7,3513.8,7.3503]
[1718971416844,0.78731183,3514.8,3513.8,7.3503]
[1718971417279,0.78731183,3514.8,3513.8,8.32516]
[1718971417455,3.0,3515.0,3513.8,8.32516]
[1718971417656,1.40686624,3516.4,3513.9,0.05691487]
[1718971417867,3.0,3516.4,3513.9,0.05691487]
[1718971418051,2.803,3516.0,3513.9,0.05691487]
[1718971418250,2.803,3516.0,3513.9,4.77191487]
[1718971418471,2.803,3516.0,3514.3,7.3503]
[1718971418785,2.803,3516.0,3514.5,2.332]
[1718971418996,3.32768,3516.0,3514.6,1.03081785]
[1718971419498,3.0,3515.9,3514.6,1.03081785]
[1718971420105,2.803,3516.0,3514.6,1.03081785]
[1718971420781,2.803,3516.0,3514.6,0.9739198]
[1718971420992,2.803,3516.0,3514.7,0.33059198]
[1718971421290,2.803,3516.0,3514.7,7.68089198]
[1718971422925,3.0,3516.3,3514.7,7.68089198]
[1718971423090,3.0,3516.4,3514.7,7.68089198]
[1718971423312,3.5803,3516.4,3514.8,0.76728018]
[1718971426818,2.803,3516.0,3514.8,0.76728018]
[1718971427018,2.803,3516.0,3514.7,7.68089198]
[1718971428490,3.5803,3516.4,3514.7,7.68089198]
[1718971428684,2.803,3516.5,3514.7,7.68089198]
[1718971428883,5.06941089,3516.4,3514.7,7.68089198]
[1718971429090,3.0,3516.4,3514.7,7.68089198]
[1718971430088,2.06947846,3516.3,3514.7,6.59799272]
[1718971430319,0.78724785,3516.2,3514.7,7.49099199]
[1718971432190,3.0,3516.2,3514.7,7.49099199]
[1718971433830,3.0,3516.2,3514.7,6.59799272]
[1718971434126,2.803,3515.8,3514.7,6.59799272]
[1718971434294,3.0,3515.7,3514.7,6.59799272]
[1718971434927,2.803,3515.3,3514.7,6.59799272]
[1718971435340,3.0,3515.2,3514.7,6.59799272]
[1718971435507,0.5803,3515.1,3514.2,18.87799272]
[1718971435706,5.803,3515.2,3514.2,18.87799272]
[1718971437704,3.0,3515.2,3514.2,18.87799272]
[1718971437902,3.0,3515.6,3514.2,18.87799272]
[1718971438104,0.5803,3515.5,3514.2,18.87799272]
[1718971439426,2.803,3515.2,3514.2,6.59799272]
[1718971439747,3.0,3515.1,3514.2,6.59799272]
[1718971441122,2.803,3514.7,3514.2,6.59799272]
[1718971441331,0.2803,3514.6,3514.2,6.59799272]
[1718971442415,3.2803,3514.6,3514.2,6.59799272]
[1718971443476,3.2803,3514.6,3511.1,63.28846]
[1718971443477,3.2803,3514.6,3513.2,6.59799272]
[1718971443620,2.803,3513.9,3513.2,6.59799272]
[1718971443809,3.2803,3513.8,3513.2,6.59799272]
[1718971443998,3.2803,3513.8,3512.9,12.28]
[1718971445102,2.07108505,3513.7,3512.9,12.28]
[1718971445351,3.2803,3513.8,3512.9,12.28]
[1718971446235,2.0709997,3513.7,3512.9,12.28]
[1718971446440,0.81542997,3513.6,3512.9,12.28]
[1718971447166,2.07106555,3513.5,3512.9,12.28]
[1718971447302,3.0,3513.5,3512.9,12.28]
[1718971447504,0.81542997,3513.6,3512.9,12.28]
[1718971447737,0.409573,3513.5,3512.9,12.28]
[1718971447939,3.2803,3513.8,3512.9,12.28]
[1718971448246,2.07099706,3513.7,3512.9,12.28]
[1718971448401,2.07099706,3513.7,3512.8,6.59799272]
[1718971449301,2.803,3514.4,3513.0,2.4444]
[1718971449510,3.0,3514.3,3513.0,2.4444]
[1718971449919,2.803,3514.4,3513.0,2.4444]
[1718971450115,2.07053118,3514.3,3513.0,2.4444]
[1718971450443,2.803,3514.9,3513.1,0.05691845]
[1718971450649,2.07026305,3514.8,3513.3,6.59799272]
[1718971451209,2.07026305,3514.8,3513.4,2.4195]
[1718971451442,2.803,3514.9,3513.4,2.4195]
[1718971451815,2.0702346,3514.8,3513.4,2.4195]
[1718971452020,2.3656583,3514.8,3513.5,0.95358821]
[1718971452261,2.07026699,3514.7,3513.5,0.95358821]
[1718971452547,2.07031457,3514.6,3513.5,0.95358821]
[1718971452710,0.2954237,3514.8,3513.6,0.78761177]
[1718971453149,2.07029382,3514.7,3513.6,0.78761177]
[1718971453907,2.803,3515.4,3513.7,0.05684745]
[1718971454236,5.89336761,3515.3,3513.8,0.05684583]
[1718971454412,2.07009761,3515.2,3513.8,0.05684583]
[1718971454907,2.07009761,3515.2,3513.9,2.2573]
[1718971455108,3.0,3515.3,3514.0,0.05684259]
[1718971455560,3.0,3515.3,3514.1,0.05684097]
[1718971455886,3.0,3515.3,3514.1,0.89121337]
[1718971456616,2.0697896,3515.2,3514.1,0.89121337]
[1718971457082,3.0,3515.3,3514.1,0.89121337]
[1718971457611,2.803,3515.9,3514.3,2.3449]
[1718971457817,2.803,3515.9,3514.4,0.05680038]
[1718971457818,5.06973119,3515.8,3514.4,0.05680038]
[1718971458064,2.06973119,3515.7,3514.5,0.24017004]
[1718971458555,2.06954655,3515.6,3514.5,0.24017004]
[1718971458753,3.52067,3515.8,3514.5,0.24017004]
[1718971459063,2.06948934,3515.7,3514.5,0.24017004]
[1718971459618,2.90880527,3515.7,3514.5,0.24017004]
[1718971459851,2.06948934,3515.6,3514.3,2.3449]
[1718971460450,2.06948934,3515.6,3514.3,8.94289272]
[1718971461649,3.0,3515.8,3514.3,8.94289272]
[1718971461650,3.0,3515.8,3514.4,2.4294]
[1718971461960,3.0,3516.3,3514.4,2.4294]
[1718971462121,3.0,3516.3,3514.8,2.4294]
[1718971462122,2.06938756,3516.2,3514.8,2.4294]
[1718971462731,3.52172842,3516.3,3514.8,2.4294]
[1718971462732,2.06938575,3516.1,3514.8,2.4294]
[1718971462930,2.06938575,3516.0,3514.9,0.89121337]
[1718971463138,3.52172842,3516.3,3514.9,0.89121337]
[1718971463454,2.06930079,3516.2,3514.9,0.89121337]
[1718971464017,2.803,3516.9,3515.0,2.4294]
[1718971464222,2.59943388,3516.8,3515.1,0.84998661]
[1718971464444,2.06916388,3516.7,3515.1,0.84998661]
[1718971464670,2.803,3516.9,3515.1,0.84998661]
[1718971464856,2.0691246,3516.8,3515.1,0.84998661]
[1718971465126,2.0691246,3516.8,3515.2,0.89121337]
[1718971465127,0.48721246,3516.7,3515.2,0.89121337]
[1718971465326,2.0691246,3516.6,3515.3,6.59799272]
[1718971465559,2.0691246,3516.6,3515.4,0.74892061]
[1718971465560,0.25563371,3516.5,3515.4,0.74892061]
[1718971465733,2.0691246,3516.4,3515.4,0.74892061]
[1718971466273,3.0,3516.6,3515.4,0.74892061]
[1718971466576,2.06920214,3516.5,3515.4,0.74892061]
[1718971466865,2.06920214,3516.4,3515.4,0.74892061]
[1718971467166,3.62902125,3516.6,3515.4,0.74892061]
[1718971467375,2.06922186,3516.5,3515.4,0.74892061]
[1718971467869,2.06920349,3516.4,3515.4,0.74892061]
[1718971468039,2.06920349,3516.4,3515.5,0.73469133]
[1718971469075,2.06920349,3516.4,3515.3,6.59799272]
[1718971469435,2.102,3516.3,3515.3,6.59799272]
[1718971471484,2.06933773,3516.2,3515.3,6.59799272]
[1718971471694,5.06933773,3516.2,3515.3,6.59799272]
[1718971471860,3.0,3516.2,3515.3,6.59799272]
[1718971472048,2.102,3516.3,3515.3,7.50073199]
[1718971473966,2.102,3516.7,3515.3,7.50073199]
[1718971474167,2.06911053,3516.6,3515.3,7.50073199]
[1718971474354,2.102,3516.7,3515.4,0.7500732]
[1718971474554,2.06907052,3516.6,3515.4,0.7500732]
[1718971474890,2.102,3516.7,3515.4,0.7500732]
[1718971475879,2.06911221,3516.6,3515.4,0.7500732]
[1718971476115,2.102,3516.7,3515.5,0.73480659]
[1718971476598,3.0,3517.3,3515.5,0.73480659]
[1718971476935,2.102,3516.8,3515.5,0.73480659]
[1718971477420,2.06908477,3516.7,3515.5,0.73480659]
[1718971477625,5.06908477,3516.7,3515.5,0.73480659]
[1718971477808,3.0,3516.7,3515.6,0.73327993]
[1718971478009,2.102,3516.8,3515.6,0.73327993]
[1718971478349,2.06907982,3516.7,3515.6,0.73327993]
[1718971478514,5.4861878,3516.7,3515.6,0.73327993]
[1718971478710,3.41710798,3516.7,3515.6,0.73327993]
[1718971479320,2.06914234,3516.6,3515.6,0.73327993]
[1718971479718,3.41710798,3516.7,3515.6,0.73327993]
[1718971480329,3.41710798,3516.7,3515.3,6.59799272]
[1718971480330,2.06909759,3516.6,3515.3,6.59799272]
[1718971480500,3.0,3516.6,3515.3,6.59799272]
[1718971480701,2.06923303,3516.5,3515.3,6.59799272]
[1718971480932,0.7588341,3516.5,3515.3,7.50073199]
[1718971482431,0.7588341,3516.5,3515.4,2.3836]
[1718971482632,3.0,3516.7,3515.4,2.3836]
[1718971482943,2.102,3516.8,3515.4,2.3836]
[1718971483617,2.06910502,3516.7,3515.4,2.3836]
[1718971483821,5.06910502,3516.7,3515.4,2.3836]
[1718971484033,2.06910502,3516.6,3515.4,2.3836]
[1718971484357,5.78621552,3516.6,3515.5,0.83846071]
[1718971484641,3.7171105,3516.6,3515.5,0.83846071]
[1718971484849,2.06928039,3516.5,3515.4,2.3836]
[1718971485152,3.0,3516.5,3515.4,2.3836]
[1718971485455,2.102,3516.4,3515.4,2.3836]
[1718971485736,2.06939716,3516.3,3515.4,2.3836]
[1718971485937,5.06939716,3516.3,3515.4,2.3836]
[1718971486243,3.0,3516.3,3515.4,2.3836]
[1718971486447,5.102,3516.4,3515.4,2.3836]
[1718971486746,2.63778997,3516.3,3515.4,2.3836]
[1718971486961,3.0,3516.2,3515.4,2.3836]
[1718971487105,3.56839111,3516.3,3515.4,2.3836]
[1718971487304,3.0,3516.3,3515.4,2.3836]
[1718971487507,2.102,3516.4,3515.4,2.3836]
[1718971487854,2.06938579,3516.3,3515.4,2.3836]
[1718971488155,5.06938579,3516.3,3515.4,2.3836]
[1718971488313,3.0,3516.3,3515.4,2.3836]
[1718971488513,0.5102,3516.3,3515.4,2.3836]
[1718971488739,3.0,3516.3,3515.4,2.3836]
[1718971488933,2.102,3516.4,3515.4,2.3836]
[1718971489141,2.06938468,3516.3,3515.4,2.3836]
[1718971489447,3.0,3516.3,3515.4,2.3836]
[1718971489657,2.102,3516.4,3515.4,2.3836]
[1718971489972,2.3122,3516.4,3515.4,2.3836]
[1718971490451,2.102,3516.4,3515.4,2.3836]
[1718971491081,2.102,3516.8,3515.4,2.3836]
[1718971491351,2.06909608,3516.7,3515.4,2.3836]
[1718971491532,2.06909638,3516.6,3515.4,2.3836]
[1718971491736,2.78620602,3516.6,3515.4,3.28175927]
[1718971491936,5.06909638,3516.5,3515.4,3.28175927]
[1718971492257,2.06909638,3516.4,3515.4,3.28175927]
[1718971492849,3.0,3516.5,3515.4,3.28175927]
[1718971493013,2.06915479,3516.4,3515.4,3.28175927]
[1718971493226,2.06915479,3516.3,3515.4,3.28175927]
[1718971493571,2.06915479,3516.2,3515.4,3.28175927]
[1718971493847,2.06915479,3516.1,3515.4,3.28175927]
[1718971494154,0.5102,3516.6,3515.4,2.3836]
[1718971494445,2.06924868,3516.5,3515.4,2.3836]
[1718971494745,5.06924868,3516.5,3515.4,2.3836]
[1718971494962,2.92719355,3516.4,3515.4,2.3836]
[1718971495252,5.06924868,3516.3,3515.4,2.3836]
[1718971495414,2.06924868,3516.2,3515.4,2.3836]
[1718971496026,2.06926971,3516.1,3515.4,2.3836]
[1718971496210,3.0,3516.3,3515.4,2.3836]
[1718971496211,2.06926971,3516.0,3515.4,2.3836]
[1718971496426,2.06926971,3515.9,3515.4,2.3836]
[1718971496630,2.06926971,3515.8,3515.4,2.3836]
[1718971496913,3.0,3516.7,3515.4,2.3836]
[1718971496914,2.06926971,3515.7,3515.4,2.3836]
[1718971497114,2.06926971,3515.6,3515.4,2.3836]
[1718971497335,2.06926971,3515.5,3515.4,2.3836]
[1718971497651,2.60336547,3516.6,3515.4,2.3836]
[1718971497836,5.06926971,3516.5,3515.4,2.3836]
[1718971498039,2.06926971,3516.4,3515.4,2.3836]
[1718971498255,2.06926971,3516.3,3515.4,2.3836]
[1718971498418,0.41385394,3516.2,3515.4,2.3836]
[1718971498618,2.06926971,3516.1,3515.4,2.3836]
[1718971499041,3.41385394,3516.2,3515.4,2.3836]
[1718971499253,3.41385394,3516.2,3515.0,9.07459272]
[1718971499254,2.102,3515.9,3515.0,9.07459272]
[1718971499435,2.102,3515.9,3514.7,6.59799272]
[1718971499436,0.41714404,3515.8,3514.7,6.59799272]
[1718971499734,2.06965722,3515.7,3514.7,6.59799272]
[1718971500463,2.06965722,3515.6,3514.7,6.59799272]
[1718971500632,4.96322735,3515.5,3514.7,6.59799272]
[1718971500848,5.06965722,3515.4,3514.7,6.59799272]
[1718971501153,2.06965722,3515.3,3514.7,6.59799272]
[1718971501357,3.0,3515.4,3514.7,6.59799272]
[1718971501566,2.06992103,3515.3,3514.7,6.59799272]
[1718971501766,2.86627015,3515.2,3514.7,6.59799272]
[1718971501940,2.06992103,3515.1,3514.7,6.59799272]
[1718971502250,2.06992103,3515.1,3514.2,6.59799272]
[1718971502466,4.17192103,3515.1,3514.2,6.59799272]
[1718971502760,2.56674805,3515.0,3514.2,6.59799272]
[1718971502968,2.06992103,3514.9,3514.2,6.59799272]
[1718971503671,2.06992103,3514.8,3514.2,6.59799272]
[1718971503872,2.06992103,3514.7,3514.2,6.59799272]
[1718971504081,2.06992103,3514.6,3514.2,6.59799272]
[1718971504238,3.0,3515.2,3514.2,6.59799272]
[1718971504239,2.06992103,3514.5,3514.2,6.59799272]
[1718971504431,2.27717181,3514.4,3514.2,6.59799272]
[1718971504629,2.07017971,3514.3,3514.2,6.59799272]
[1718971504950,2.07017971,3514.3,3513.6,2.4784]
[1718971505268,2.07017971,3514.2,3513.6,2.4784]
[1718971505446,2.07017971,3514.1,3513.6,2.4784]
[1718971505635,2.07017971,3514.0,3513.6,2.4784]
[1718971505981,2.07017971,3513.9,3513.6,2.4784]
[1718971506294,2.07017971,3513.8,3513.6,2.4784]
[1718971506573,2.07017971,3513.7,3513.2,2.4468]
[1718971506872,2.102,3514.5,3513.2,2.4468]
[1718971506873,2.07017971,3513.6,3513.2,2.4468]
[1718971507085,2.07017971,3513.5,3513.2,2.4468]
[1718971507387,3.0,3514.4,3513.2,2.4468]
[1718971507388,2.07017971,3513.4,3513.2,2.4468]
[1718971507698,2.07017971,3513.3,3513.2,2.4468]
[1718971507850,2.07073854,3513.3,3513.2,2.4468]
[1718971508167,2.102,3514.1,3513.2,2.4468]
[1718971508376,2.07061975,3514.0,3513.2,2.4468]
[1718971508672,2.39071741,3514.0,3513.2,2.4468]
[1718971508891,2.07061975,3513.9,3513.2,2.4468]
[1718971509238,2.07061975,3513.9,3513.0,6.59799272]
[1718971509239,5.07061975,3513.9,3513.0,6.59799272]
[1718971509435,2.07061975,3513.8,3513.0,6.59799272]
[1718971509767,2.07061975,3513.8,3513.0,7.49675199]
[1718971509966,3.0,3514.6,3513.3,2.3681]
[1718971510157,2.07046159,3514.5,3513.3,2.3681]
[1718971510484,2.07036667,3514.4,3513.3,2.3681]
[1718971510698,3.0,3514.8,3513.3,2.3681]
[1718971511004,2.07006456,3514.7,3513.4,8.30999272]
[1718971511163,0.37915701,3515.3,3513.4,8.30999272]
[1718971511345,2.07004626,3515.2,3513.4,8.30999272]
[1718971511547,2.07004626,3515.2,3513.5,0.84244071]
[1718971512049,2.07004626,3515.2,3513.6,0.05690627]
[1718971512937,2.07004626,3515.2,3513.6,1.712]